[Event "Titled Tuesday Blitz June 20 Early 2023"]
[White "Castillo Pena, Patricia Evarista"]
[Black "arenal72"]
[WhiteFideId "6412106"]
[WhiteElo "1859"]
[BlackElo "2359"]
[Result "0-1"]
[Round "5"]
[TimeControl "180+2"]
[Date "2023.06.20"]
[WhiteClock "0:00:00"]
[BlackClock "0:00:23"]
[Board "197"]

1. d4 {[%clk 0:02:59]}  g6 {[%clk 0:02:55]} 2. e4 {[%clk 0:02:57]}  Bg7 {[%clk 0:02:55]} 3. Nf3 {[%clk 0:02:55]}  d6 {[%clk 0:02:55]} 4. Nc3 {[%clk 0:02:54]}  Nf6 {[%clk 0:02:54]} 5. Be3 {[%clk 0:02:54]}  a6 {[%clk 0:02:53]} 6. Qd2 {[%clk 0:02:54]}  b5 {[%clk 0:02:53]} 7. a3 {[%clk 0:02:53]}  Bb7 {[%clk 0:02:53]} 8. Bd3 {[%clk 0:02:50]}  O-O {[%clk 0:02:52]} 9. O-O {[%clk 0:02:49]}  Nbd7 {[%clk 0:02:49]} 10. Rfe1 {[%clk 0:02:47]}  c5 {[%clk 0:02:46]} 11. Bh6 {[%clk 0:02:35]}  cxd4 {[%clk 0:02:37]} 12. Nxd4 {[%clk 0:02:32]}  Nc5 {[%clk 0:02:36]} 13. Bxg7 {[%clk 0:02:28]}  Kxg7 {[%clk 0:02:34]} 14. Qg5 {[%clk 0:02:09]}  e5 {[%clk 0:02:01]} 15. Nf5+ {[%clk 0:02:01]}  Kh8 {[%clk 0:02:00]} 16. Ng3 {[%clk 0:01:37]}  Ne6 {[%clk 0:01:53]} 17. Qd2 {[%clk 0:01:29]}  Rc8 {[%clk 0:01:47]} 18. Rad1 {[%clk 0:01:28]}  Qb6 {[%clk 0:01:43]} 19. Nd5 {[%clk 0:01:25]}  Bxd5 {[%clk 0:01:37]} 20. exd5 {[%clk 0:01:25]}  Nf4 {[%clk 0:01:38]} 21. c3 {[%clk 0:01:04]}  Kg7 {[%clk 0:01:19]} 22. Be4 {[%clk 0:00:57]}  Rc5 {[%clk 0:01:04]} 23. Qe3 {[%clk 0:00:52]}  Qc7 {[%clk 0:00:59]} 24. Bf3 {[%clk 0:00:46]}  N6xd5 {[%clk 0:00:57]} 25. Bxd5 {[%clk 0:00:41]}  Rxd5 {[%clk 0:00:55]} 26. Ne4 {[%clk 0:00:32]}  Rxd1 {[%clk 0:00:53]} 27. Rxd1 {[%clk 0:00:30]}  d5 {[%clk 0:00:54]} 28. Ng5 {[%clk 0:00:24]}  h6 {[%clk 0:00:51]} 29. Nf3 {[%clk 0:00:18]}  e4 {[%clk 0:00:51]} 30. Nd4 {[%clk 0:00:14]}  Nd3 {[%clk 0:00:43]} 31. Rd2 {[%clk 0:00:06]}  Re8 {[%clk 0:00:34]} 32. Qg3 {[%clk 0:00:06]}  Qxg3 {[%clk 0:00:33]} 33. hxg3 {[%clk 0:00:07]}  f5 {[%clk 0:00:33]} 34. Nc6 {[%clk 0:00:06]}  Kf6 {[%clk 0:00:29]} 35. Nb4 {[%clk 0:00:04]}  Nxb4 {[%clk 0:00:28]} 36. axb4 {[%clk 0:00:05]}  Ke5 {[%clk 0:00:27]} 37. Kf1 {[%clk 0:00:06]}  Ra8 {[%clk 0:00:25]} 38. Ke2 {[%clk 0:00:04]}  a5 {[%clk 0:00:25]} 39. bxa5 {[%clk 0:00:04]}  Rxa5 {[%clk 0:00:24]} 40. Ke3 {[%clk 0:00:00]}  Ra1 {[%clk 0:00:23]} 0-1


[Site "https://www.chess.com"]

[Event "Titled Tuesday Blitz June 20 Early 2023"]
[White "luachess1"]
[Black "Spichkin, Alexander"]
[BlackFideId "4144074"]
[WhiteElo "1618"]
[BlackElo "1986"]
[Result "0-1"]
[Round "5"]
[TimeControl "180+2"]
[Date "2023.06.20"]
[WhiteClock "0:00:59"]
[BlackClock "0:01:38"]
[Board "198"]

1. d4 {[%clk 0:03:00]}  e6 {[%clk 0:02:27]} 2. c4 {[%clk 0:02:59]}  f5 {[%clk 0:02:28]} 3. Nc3 {[%clk 0:02:56]}  Nf6 {[%clk 0:02:28]} 4. Bg5 {[%clk 0:02:52]}  Bb4 {[%clk 0:02:28]} 5. Qc2 {[%clk 0:02:50]}  O-O {[%clk 0:02:25]} 6. Nf3 {[%clk 0:02:49]}  b6 {[%clk 0:02:23]} 7. e3 {[%clk 0:02:47]}  Bb7 {[%clk 0:02:22]} 8. Be2 {[%clk 0:02:47]}  h6 {[%clk 0:02:22]} 9. Bh4 {[%clk 0:02:43]}  Qe8 {[%clk 0:02:22]} 10. O-O {[%clk 0:02:41]}  Bxc3 {[%clk 0:02:21]} 11. bxc3 {[%clk 0:02:35]}  d6 {[%clk 0:02:21]} 12. Nd2 {[%clk 0:02:30]}  Qg6 {[%clk 0:02:14]} 13. Bf3 {[%clk 0:02:11]}  Ne4 {[%clk 0:02:14]} 14. Bxe4 {[%clk 0:01:53]}  fxe4 {[%clk 0:02:10]} 15. Bg3 {[%clk 0:01:49]}  Nd7 {[%clk 0:02:08]} 16. Rab1 {[%clk 0:01:48]}  d5 {[%clk 0:02:02]} 17. c5 {[%clk 0:01:43]}  Ba6 {[%clk 0:02:02]} 18. Rfe1 {[%clk 0:01:38]}  Bd3 {[%clk 0:02:01]} 19. Qb2 {[%clk 0:01:33]}  Bxb1 {[%clk 0:02:02]} 20. Rxb1 {[%clk 0:01:31]}  bxc5 {[%clk 0:02:02]} 21. Bxc7 {[%clk 0:01:29]}  cxd4 {[%clk 0:01:58]} 22. cxd4 {[%clk 0:01:27]}  Rfc8 {[%clk 0:01:57]} 23. Bd6 {[%clk 0:01:23]}  Nb6 {[%clk 0:01:55]} 24. Bc5 {[%clk 0:01:18]}  Rab8 {[%clk 0:01:53]} 25. Qa3 {[%clk 0:01:17]}  Nc4 {[%clk 0:01:48]} 26. Rxb8 {[%clk 0:01:16]}  Rxb8 {[%clk 0:01:47]} 27. Bb4 {[%clk 0:01:07]}  Nxd2 {[%clk 0:01:46]} 28. Bxd2 {[%clk 0:01:08]}  Rb1+ {[%clk 0:01:42]} 29. Bc1 {[%clk 0:00:59]}  Qh5 {[%clk 0:01:38]} 0-1


[Site "https://www.chess.com"]

[Event "Titled Tuesday Blitz June 20 Early 2023"]
[White "Sovetbekova, Nurai"]
[Black "Butti, Enrique"]
[WhiteFideId "13801910"]
[BlackFideId "3700470"]
[WhiteElo "1857"]
[BlackElo "2080"]
[Result "1-0"]
[Round "5"]
[TimeControl "180+2"]
[Date "2023.06.20"]
[WhiteClock "0:00:09"]
[BlackClock "0:00:09"]
[Board "200"]

1. d4 {[%clk 0:03:00]}  Nf6 {[%clk 0:02:54]} 2. c4 {[%clk 0:03:01]}  e6 {[%clk 0:02:53]} 3. Nc3 {[%clk 0:03:01]}  Bb4 {[%clk 0:02:51]} 4. e3 {[%clk 0:02:57]}  b6 {[%clk 0:02:49]} 5. Bd2 {[%clk 0:02:57]}  Bb7 {[%clk 0:02:48]} 6. Nf3 {[%clk 0:02:57]}  O-O {[%clk 0:02:45]} 7. Bd3 {[%clk 0:02:57]}  Bxc3 {[%clk 0:02:43]} 8. Bxc3 {[%clk 0:02:56]}  Ne4 {[%clk 0:02:43]} 9. O-O {[%clk 0:02:51]}  f5 {[%clk 0:02:42]} 10. Nd2 {[%clk 0:02:45]}  Qh4 {[%clk 0:02:30]} 11. f3 {[%clk 0:02:22]}  Nxc3 {[%clk 0:02:26]} 12. bxc3 {[%clk 0:02:22]}  Rf6 {[%clk 0:02:22]} 13. e4 {[%clk 0:02:16]}  Rh6 {[%clk 0:02:20]} 14. h3 {[%clk 0:02:14]}  f4 {[%clk 0:02:07]} 15. Qe1 {[%clk 0:02:01]}  Qg5 {[%clk 0:02:05]} 16. Kh1 {[%clk 0:01:52]}  Nc6 {[%clk 0:02:04]} 17. e5 {[%clk 0:01:49]}  Na5 {[%clk 0:01:58]} 18. Ne4 {[%clk 0:01:46]}  Qe7 {[%clk 0:01:52]} 19. c5 {[%clk 0:01:25]}  Rf8 {[%clk 0:01:44]} 20. cxb6 {[%clk 0:01:23]}  axb6 {[%clk 0:01:43]} 21. Nf2 {[%clk 0:01:09]}  Rh4 {[%clk 0:01:25]} 22. c4 {[%clk 0:00:57]}  Qg5 {[%clk 0:01:16]} 23. Ne4 {[%clk 0:00:47]}  Qh6 {[%clk 0:01:04]} 24. Nf2 {[%clk 0:00:40]}  Ba6 {[%clk 0:00:56]} 25. Rc1 {[%clk 0:00:32]}  g5 {[%clk 0:00:45]} 26. Ng4 {[%clk 0:00:30]}  Qg7 {[%clk 0:00:43]} 27. Qe4 {[%clk 0:00:13]}  Bb7 {[%clk 0:00:32]} 28. Qe2 {[%clk 0:00:13]}  h5 {[%clk 0:00:21]} 29. Nf6+ {[%clk 0:00:13]}  Rxf6 {[%clk 0:00:21]} 30. exf6 {[%clk 0:00:13]}  Qxf6 {[%clk 0:00:21]} 31. Qf2 {[%clk 0:00:14]}  g4 {[%clk 0:00:17]} 32. fxg4 {[%clk 0:00:12]}  hxg4 {[%clk 0:00:16]} 33. Qxf4 {[%clk 0:00:09]}  Qxf4 {[%clk 0:00:15]} 34. Rxf4 {[%clk 0:00:09]}  Rxh3+ {[%clk 0:00:16]} 35. Kg1 {[%clk 0:00:09]}  Rxd3 {[%clk 0:00:17]} 36. Rxg4+ {[%clk 0:00:10]}  Kf7 {[%clk 0:00:16]} 37. Rf1+ {[%clk 0:00:10]}  Ke7 {[%clk 0:00:16]} 38. c5 {[%clk 0:00:10]}  Bd5 {[%clk 0:00:15]} 39. Rg7+ {[%clk 0:00:09]}  Ke8 {[%clk 0:00:14]} 40. Rg8+ {[%clk 0:00:09]}  Ke7 {[%clk 0:00:13]} 41. Rg7+ {[%clk 0:00:09]}  Ke8 {[%clk 0:00:13]} 42. Rff7 {[%clk 0:00:09]}  Nc6 {[%clk 0:00:11]} 43. Rxd7 {[%clk 0:00:09]}  Rxd4 {[%clk 0:00:10]} 44. Rxc7 {[%clk 0:00:09]}  bxc5 {[%clk 0:00:09]} 45. Rg8# {[%clk 0:00:09]} 1-0


[Site "https://www.chess.com"]

[Event "Titled Tuesday Blitz June 20 Early 2023"]
[White "le-castor-faineant"]
[Black "Mayaud, Raphael"]
[BlackFideId "627151"]
[WhiteElo "2145"]
[BlackElo "2191"]
[Result "1/2-1/2"]
[Round "5"]
[TimeControl "180+2"]
[Date "2023.06.20"]
[WhiteClock "0:00:39"]
[BlackClock "0:00:10"]
[Board "201"]

1. e4 {[%clk 0:02:57]}  d5 {[%clk 0:02:59]} 2. exd5 {[%clk 0:02:56]}  Qxd5 {[%clk 0:02:56]} 3. Nc3 {[%clk 0:02:56]}  Qa5 {[%clk 0:02:56]} 4. Nf3 {[%clk 0:02:57]}  c6 {[%clk 0:02:56]} 5. d4 {[%clk 0:02:57]}  Nf6 {[%clk 0:02:57]} 6. Bc4 {[%clk 0:02:56]}  Bf5 {[%clk 0:02:57]} 7. O-O {[%clk 0:02:57]}  e6 {[%clk 0:02:58]} 8. Bg5 {[%clk 0:02:56]}  Bg4 {[%clk 0:02:56]} 9. Bxf6 {[%clk 0:02:55]}  gxf6 {[%clk 0:02:56]} 10. h3 {[%clk 0:02:55]}  Bh5 {[%clk 0:02:54]} 11. Ne4 {[%clk 0:02:55]}  Nd7 {[%clk 0:02:52]} 12. c3 {[%clk 0:02:53]}  O-O-O {[%clk 0:02:46]} 13. b4 {[%clk 0:02:53]}  Qc7 {[%clk 0:02:46]} 14. Ng3 {[%clk 0:02:50]}  Bg6 {[%clk 0:02:43]} 15. a4 {[%clk 0:02:49]}  Bd6 {[%clk 0:02:37]} 16. Ne2 {[%clk 0:02:42]}  Bh5 {[%clk 0:02:33]} 17. Nc1 {[%clk 0:02:41]}  Rhg8 {[%clk 0:02:29]} 18. Kh1 {[%clk 0:02:40]}  Rg7 {[%clk 0:02:26]} 19. Nd3 {[%clk 0:02:37]}  Rdg8 {[%clk 0:02:24]} 20. Rg1 {[%clk 0:02:37]}  f5 {[%clk 0:02:18]} 21. Nc5 {[%clk 0:02:28]}  Bxc5 {[%clk 0:01:38]} 22. bxc5 {[%clk 0:02:27]}  Qf4 {[%clk 0:01:32]} 23. Be2 {[%clk 0:02:25]}  Nf6 {[%clk 0:01:24]} 24. Ne5 {[%clk 0:02:15]}  Bxe2 {[%clk 0:01:24]} 25. Qxe2 {[%clk 0:02:16]}  Ne4 {[%clk 0:01:23]} 26. Ra2 {[%clk 0:02:15]}  Nxc3 {[%clk 0:01:20]} 27. Qd2 {[%clk 0:02:06]}  Qxd2 {[%clk 0:01:11]} 28. Rxd2 {[%clk 0:02:07]}  Ne4 {[%clk 0:01:10]} 29. Rb2 {[%clk 0:02:03]}  f6 {[%clk 0:01:05]} 30. Nc4 {[%clk 0:02:03]}  f4 {[%clk 0:00:52]} 31. f3 {[%clk 0:02:03]}  Ng3+ {[%clk 0:00:45]} 32. Kh2 {[%clk 0:02:03]}  Rd8 {[%clk 0:00:42]} 33. Nd6+ {[%clk 0:02:03]}  Rxd6 {[%clk 0:00:26]} 34. cxd6 {[%clk 0:02:04]}  Nf5 {[%clk 0:00:22]} 35. Rb4 {[%clk 0:01:52]}  Rd7 {[%clk 0:00:20]} 36. d5 {[%clk 0:01:52]}  cxd5 {[%clk 0:00:17]} 37. Rxf4 {[%clk 0:01:52]}  Rxd6 {[%clk 0:00:16]} 38. Rc1+ {[%clk 0:01:49]}  Rc6 {[%clk 0:00:17]} 39. Rxc6+ {[%clk 0:01:48]}  bxc6 {[%clk 0:00:18]} 40. g4 {[%clk 0:01:48]}  Nd4 {[%clk 0:00:18]} 41. Rxf6 {[%clk 0:01:48]}  c5 {[%clk 0:00:18]} 42. f4 {[%clk 0:01:45]}  c4 {[%clk 0:00:18]} 43. f5 {[%clk 0:01:46]}  c3 {[%clk 0:00:14]} 44. fxe6 {[%clk 0:01:40]}  c2 {[%clk 0:00:14]} 45. Rf8+ {[%clk 0:01:06]}  Kc7 {[%clk 0:00:14]} 46. e7 {[%clk 0:01:06]}  c1=Q {[%clk 0:00:13]} 47. e8=Q {[%clk 0:01:07]}  Qd2+ {[%clk 0:00:13]} 48. Kg3 {[%clk 0:01:07]}  Ne2+ {[%clk 0:00:13]} 49. Kf3 {[%clk 0:00:38]}  Nd4+ {[%clk 0:00:13]} 50. Kg3 {[%clk 0:00:38]}  Ne2+ {[%clk 0:00:10]} 51. Kf3 {[%clk 0:00:38]}  Nd4+ {[%clk 0:00:10]} 52. Kg3 {[%clk 0:00:39]} 1/2-1/2


[Site "https://www.chess.com"]

[Event "Titled Tuesday Blitz June 20 Early 2023"]
[White "Zallio, Luciano de Souza"]
[Black "Skiadopoulos, Nikolaos"]
[WhiteFideId "2109700"]
[BlackFideId "4200772"]
[WhiteElo "2057"]
[BlackElo "2022"]
[Result "1/2-1/2"]
[Round "5"]
[TimeControl "180+2"]
[Date "2023.06.20"]
[WhiteClock "0:00:22"]
[BlackClock "0:00:13"]
[Board "204"]

1. e4 {[%clk 0:03:00]}  c5 {[%clk 0:02:59]} 2. Nf3 {[%clk 0:02:58]}  Nc6 {[%clk 0:02:59]} 3. d4 {[%clk 0:02:57]}  cxd4 {[%clk 0:02:59]} 4. Nxd4 {[%clk 0:02:58]}  e5 {[%clk 0:02:59]} 5. Nb5 {[%clk 0:02:57]}  d6 {[%clk 0:02:59]} 6. N1c3 {[%clk 0:02:56]}  a6 {[%clk 0:02:59]} 7. Na3 {[%clk 0:02:57]}  b5 {[%clk 0:03:00]} 8. Nd5 {[%clk 0:02:57]}  Nce7 {[%clk 0:03:00]} 9. c4 {[%clk 0:02:52]}  Nxd5 {[%clk 0:02:59]} 10. exd5 {[%clk 0:02:46]}  f5 {[%clk 0:02:56]} 11. cxb5 {[%clk 0:02:45]}  Nf6 {[%clk 0:02:55]} 12. bxa6 {[%clk 0:02:42]}  Be7 {[%clk 0:02:55]} 13. Bb5+ {[%clk 0:02:40]}  Kf7 {[%clk 0:02:54]} 14. O-O {[%clk 0:02:31]}  Bxa6 {[%clk 0:02:37]} 15. Bxa6 {[%clk 0:02:23]}  Rxa6 {[%clk 0:02:36]} 16. Qd3 {[%clk 0:02:21]}  Qa8 {[%clk 0:02:17]} 17. Qxf5 {[%clk 0:02:18]}  Qxd5 {[%clk 0:02:17]} 18. Bg5 {[%clk 0:02:07]}  Rb6 {[%clk 0:02:05]} 19. Rfd1 {[%clk 0:02:03]}  Qe6 {[%clk 0:02:04]} 20. Qxe6+ {[%clk 0:01:53]}  Kxe6 {[%clk 0:02:04]} 21. Bxf6 {[%clk 0:01:51]}  gxf6 {[%clk 0:02:03]} 22. Nc4 {[%clk 0:01:50]}  Rb4 {[%clk 0:01:59]} 23. b3 {[%clk 0:01:50]}  d5 {[%clk 0:01:59]} 24. Na5 {[%clk 0:01:44]}  Rc8 {[%clk 0:01:43]} 25. Rac1 {[%clk 0:01:44]}  Rxc1 {[%clk 0:01:38]} 26. Rxc1 {[%clk 0:01:44]}  Bd6 {[%clk 0:01:22]} 27. a3 {[%clk 0:01:38]}  Re4 {[%clk 0:01:20]} 28. b4 {[%clk 0:01:35]}  Re2 {[%clk 0:01:17]} 29. Ra1 {[%clk 0:01:24]}  d4 {[%clk 0:01:16]} 30. Kf1 {[%clk 0:01:23]}  d3 {[%clk 0:01:16]} 31. Nc4 {[%clk 0:01:17]}  Rc2 {[%clk 0:01:04]} 32. Ne3 {[%clk 0:00:46]}  Rb2 {[%clk 0:01:03]} 33. Nc4 {[%clk 0:00:44]}  Rc2 {[%clk 0:00:59]} 34. Nxd6 {[%clk 0:00:44]}  Kxd6 {[%clk 0:00:59]} 35. a4 {[%clk 0:00:44]}  d2 {[%clk 0:00:48]} 36. Ke2 {[%clk 0:00:43]}  d1=Q+ {[%clk 0:00:48]} 37. Kxd1 {[%clk 0:00:43]}  Rxf2 {[%clk 0:00:48]} 38. Rc1 {[%clk 0:00:39]}  Rxg2 {[%clk 0:00:46]} 39. b5 {[%clk 0:00:39]}  Rb2 {[%clk 0:00:37]} 40. Rc6+ {[%clk 0:00:37]}  Kd5 {[%clk 0:00:37]} 41. Rxf6 {[%clk 0:00:37]}  e4 {[%clk 0:00:37]} 42. Ra6 {[%clk 0:00:30]}  e3 {[%clk 0:00:36]} 43. b6 {[%clk 0:00:27]}  Ke4 {[%clk 0:00:36]} 44. b7 {[%clk 0:00:20]}  Rxb7 {[%clk 0:00:34]} 45. Re6+ {[%clk 0:00:21]}  Kd3 {[%clk 0:00:34]} 46. Rd6+ {[%clk 0:00:21]}  Ke4 {[%clk 0:00:33]} 47. Re6+ {[%clk 0:00:21]}  Kd3 {[%clk 0:00:32]} 48. Rd6+ {[%clk 0:00:22]}  Ke4 {[%clk 0:00:30]} 49. a5 {[%clk 0:00:20]}  Rb1+ {[%clk 0:00:25]} 50. Ke2 {[%clk 0:00:20]}  Rb2+ {[%clk 0:00:24]} 51. Ke1 {[%clk 0:00:20]}  Kf3 {[%clk 0:00:23]} 52. Rf6+ {[%clk 0:00:20]}  Ke4 {[%clk 0:00:22]} 53. Re6+ {[%clk 0:00:20]}  Kf3 {[%clk 0:00:22]} 54. Rf6+ {[%clk 0:00:20]}  Ke4 {[%clk 0:00:22]} 55. h4 {[%clk 0:00:20]}  Rb1+ {[%clk 0:00:19]} 56. Ke2 {[%clk 0:00:20]}  Rb2+ {[%clk 0:00:19]} 57. Ke1 {[%clk 0:00:21]}  Rb1+ {[%clk 0:00:19]} 58. Ke2 {[%clk 0:00:21]}  Rb2+ {[%clk 0:00:19]} 59. Kd1 {[%clk 0:00:22]}  Ra2 {[%clk 0:00:17]} 60. a6 {[%clk 0:00:20]}  Kd3 {[%clk 0:00:15]} 61. Rd6+ {[%clk 0:00:20]}  Ke4 {[%clk 0:00:15]} 62. Re6+ {[%clk 0:00:20]}  Kd3 {[%clk 0:00:15]} 63. Rd6+ {[%clk 0:00:20]}  Ke4 {[%clk 0:00:15]} 64. h5 {[%clk 0:00:20]}  Ra1+ {[%clk 0:00:13]} 65. Ke2 {[%clk 0:00:21]}  Ra2+ {[%clk 0:00:13]} 66. Ke1 {[%clk 0:00:21]}  Ra1+ {[%clk 0:00:13]} 67. Ke2 {[%clk 0:00:22]}  Ra2+ {[%clk 0:00:13]} 68. Kf1 {[%clk 0:00:22]}  Ra1+ {[%clk 0:00:13]} 69. Ke2 {[%clk 0:00:22]} 1/2-1/2


[Site "https://www.chess.com"]

[Event "Titled Tuesday Blitz June 20 Early 2023"]
[White "Gardezi, Arsal"]
[Black "Corredor Castellanos, Camilo"]
[WhiteFideId "30949521"]
[BlackFideId "4425871"]
[WhiteElo "1906"]
[BlackElo "1994"]
[Result "0-1"]
[Round "5"]
[TimeControl "180+2"]
[Date "2023.06.20"]
[WhiteClock "0:00:26"]
[BlackClock "0:00:27"]
[Board "205"]

1. Nf3 {[%clk 0:02:54]}  Nf6 {[%clk 0:02:58]} 2. d4 {[%clk 0:02:54]}  e6 {[%clk 0:02:58]} 3. c4 {[%clk 0:02:55]}  d5 {[%clk 0:02:58]} 4. Nc3 {[%clk 0:02:55]}  dxc4 {[%clk 0:02:58]} 5. e4 {[%clk 0:02:55]}  b5 {[%clk 0:02:58]} 6. e5 {[%clk 0:02:51]}  Nd5 {[%clk 0:02:57]} 7. Nxb5 {[%clk 0:02:51]}  Nb6 {[%clk 0:02:58]} 8. Nc3 {[%clk 0:02:50]}  Bb7 {[%clk 0:02:55]} 9. Bxc4 {[%clk 0:02:43]}  Nxc4 {[%clk 0:02:40]} 10. Qa4+ {[%clk 0:02:43]}  Qd7 {[%clk 0:02:40]} 11. Qxc4 {[%clk 0:02:43]}  Ba6 {[%clk 0:02:41]} 12. Qa4 {[%clk 0:02:40]}  Be7 {[%clk 0:02:18]} 13. Qxd7+ {[%clk 0:02:36]}  Nxd7 {[%clk 0:02:19]} 14. Bf4 {[%clk 0:02:29]}  O-O {[%clk 0:02:02]} 15. O-O-O {[%clk 0:02:28]}  Nb6 {[%clk 0:01:58]} 16. d5 {[%clk 0:02:20]}  exd5 {[%clk 0:01:54]} 17. Nxd5 {[%clk 0:02:21]}  Nxd5 {[%clk 0:01:53]} 18. Rxd5 {[%clk 0:02:22]}  Rfd8 {[%clk 0:01:53]} 19. Rhd1 {[%clk 0:02:21]}  Bb7 {[%clk 0:01:53]} 20. Rxd8+ {[%clk 0:02:20]}  Rxd8 {[%clk 0:01:54]} 21. Rxd8+ {[%clk 0:02:19]}  Bxd8 {[%clk 0:01:55]} 22. Nd4 {[%clk 0:02:18]}  Bxg2 {[%clk 0:01:53]} 23. e6 {[%clk 0:02:17]}  fxe6 {[%clk 0:01:30]} 24. Nxe6 {[%clk 0:02:17]}  Bf6 {[%clk 0:01:30]} 25. Nxc7 {[%clk 0:02:13]}  Bd4 {[%clk 0:01:31]} 26. Be3 {[%clk 0:02:09]}  Be5 {[%clk 0:01:09]} 27. Nb5 {[%clk 0:01:58]}  a6 {[%clk 0:01:09]} 28. Nd4 {[%clk 0:01:55]}  Bxh2 {[%clk 0:01:08]} 29. f4 {[%clk 0:01:54]}  Bd5 {[%clk 0:01:07]} 30. a4 {[%clk 0:01:52]}  Kf7 {[%clk 0:01:06]} 31. b4 {[%clk 0:01:51]}  Bg3 {[%clk 0:01:03]} 32. Kd2 {[%clk 0:01:46]}  Bh4 {[%clk 0:01:01]} 33. b5 {[%clk 0:01:43]}  axb5 {[%clk 0:01:01]} 34. axb5 {[%clk 0:01:39]}  Bd8 {[%clk 0:01:01]} 35. Nf5 {[%clk 0:01:36]}  Kf6 {[%clk 0:00:48]} 36. Nd4 {[%clk 0:01:26]}  h5 {[%clk 0:00:45]} 37. Bf2 {[%clk 0:01:24]}  Bc7 {[%clk 0:00:40]} 38. Bh4+ {[%clk 0:01:17]}  Kf7 {[%clk 0:00:37]} 39. Ke3 {[%clk 0:01:15]}  Bb6 {[%clk 0:00:38]} 40. Kd3 {[%clk 0:01:14]}  Bc7 {[%clk 0:00:33]} 41. Bg5 {[%clk 0:01:13]}  h4 {[%clk 0:00:30]} 42. Bxh4 {[%clk 0:01:13]}  Bxf4 {[%clk 0:00:30]} 43. b6 {[%clk 0:01:13]}  g5 {[%clk 0:00:30]} 44. Bf2 {[%clk 0:01:09]}  Ke7 {[%clk 0:00:29]} 45. Nf5+ {[%clk 0:01:06]}  Ke6 {[%clk 0:00:27]} 46. Nd4+ {[%clk 0:01:05]}  Kd7 {[%clk 0:00:27]} 47. Nf5 {[%clk 0:01:01]}  Be6 {[%clk 0:00:27]} 48. Ng7 {[%clk 0:01:00]}  Bf7 {[%clk 0:00:27]} 49. Ke4 {[%clk 0:00:58]}  Bg6+ {[%clk 0:00:27]} 50. Kd5 {[%clk 0:00:58]}  Kc8 {[%clk 0:00:27]} 51. Ne6 {[%clk 0:00:57]}  Bf7 {[%clk 0:00:27]} 52. Bd4 {[%clk 0:00:29]}  Kd7 {[%clk 0:00:26]} 53. b7 {[%clk 0:00:27]}  Bxe6+ {[%clk 0:00:27]} 54. Ke4 {[%clk 0:00:27]}  Kc7 {[%clk 0:00:27]} 55. Be5+ {[%clk 0:00:27]}  Bxe5 {[%clk 0:00:26]} 56. Kxe5 {[%clk 0:00:26]}  g4 {[%clk 0:00:27]} 0-1


[Site "https://www.chess.com"]

[Event "Titled Tuesday Blitz June 20 Early 2023"]
[White "Osinovsky, Stepan"]
[Black "Sanudula, K M Dahamdi"]
[WhiteFideId "4157354"]
[BlackFideId "9932470"]
[WhiteElo "2222"]
[BlackElo "1501"]
[Result "0-1"]
[Round "5"]
[TimeControl "180+2"]
[Date "2023.06.20"]
[WhiteClock "0:00:14"]
[BlackClock "0:01:25"]
[Board "206"]

1. e4 {[%clk 0:02:55]}  d5 {[%clk 0:03:00]} 2. exd5 {[%clk 0:02:55]}  Qxd5 {[%clk 0:03:01]} 3. Nc3 {[%clk 0:02:54]}  Qa5 {[%clk 0:03:00]} 4. g3 {[%clk 0:02:54]}  Nf6 {[%clk 0:03:00]} 5. Bg2 {[%clk 0:02:54]}  c6 {[%clk 0:03:00]} 6. Nge2 {[%clk 0:02:54]}  Bg4 {[%clk 0:03:00]} 7. h3 {[%clk 0:02:53]}  Bxe2 {[%clk 0:02:59]} 8. Qxe2 {[%clk 0:02:50]}  e6 {[%clk 0:02:58]} 9. d4 {[%clk 0:02:48]}  Bb4 {[%clk 0:02:58]} 10. Bd2 {[%clk 0:02:47]}  Nbd7 {[%clk 0:02:55]} 11. a3 {[%clk 0:02:46]}  Bxc3 {[%clk 0:02:46]} 12. Bxc3 {[%clk 0:02:46]}  Qb6 {[%clk 0:02:45]} 13. b3 {[%clk 0:02:40]}  Nd5 {[%clk 0:02:45]} 14. Bb2 {[%clk 0:02:40]}  N7f6 {[%clk 0:02:45]} 15. c4 {[%clk 0:02:37]}  Ne7 {[%clk 0:02:43]} 16. Qc2 {[%clk 0:02:33]}  Nf5 {[%clk 0:02:40]} 17. O-O-O {[%clk 0:02:29]}  O-O-O {[%clk 0:02:39]} 18. Rd2 {[%clk 0:02:23]}  Nxd4 {[%clk 0:02:34]} 19. Bxd4 {[%clk 0:02:08]}  Rxd4 {[%clk 0:02:32]} 20. Rxd4 {[%clk 0:02:09]}  Qxd4 {[%clk 0:02:31]} 21. Rd1 {[%clk 0:02:09]}  Qa1+ {[%clk 0:02:29]} 22. Kd2 {[%clk 0:01:57]}  Rd8+ {[%clk 0:02:27]} 23. Ke1 {[%clk 0:01:56]}  Rxd1+ {[%clk 0:02:16]} 24. Qxd1 {[%clk 0:01:57]}  Qxa3 {[%clk 0:02:16]} 25. g4 {[%clk 0:01:44]}  Nd7 {[%clk 0:02:11]} 26. Kf1 {[%clk 0:01:43]}  Nc5 {[%clk 0:02:07]} 27. Kg1 {[%clk 0:01:36]}  Qxb3 {[%clk 0:02:01]} 28. Qd6 {[%clk 0:01:34]}  Qxc4 {[%clk 0:02:00]} 29. Qf8+ {[%clk 0:01:30]}  Kc7 {[%clk 0:01:59]} 30. Qxf7+ {[%clk 0:01:29]}  Nd7 {[%clk 0:01:59]} 31. Qxg7 {[%clk 0:01:28]}  a5 {[%clk 0:02:00]} 32. Qxh7 {[%clk 0:01:21]}  a4 {[%clk 0:02:00]} 33. Bf1 {[%clk 0:01:15]}  Qc1 {[%clk 0:01:55]} 34. Qe4 {[%clk 0:00:58]}  a3 {[%clk 0:01:53]} 35. Qxe6 {[%clk 0:00:58]}  Qb1 {[%clk 0:01:48]} 36. Kg2 {[%clk 0:00:27]}  a2 {[%clk 0:01:48]} 37. Bd3 {[%clk 0:00:28]}  Qb2 {[%clk 0:01:40]} 38. Bf5 {[%clk 0:00:27]}  a1=Q {[%clk 0:01:37]} 39. Qxd7+ {[%clk 0:00:27]}  Kb6 {[%clk 0:01:37]} 40. Qd8+ {[%clk 0:00:28]}  Kb5 {[%clk 0:01:35]} 41. Bd3+ {[%clk 0:00:26]}  Kb4 {[%clk 0:01:35]} 42. Qb6+ {[%clk 0:00:21]}  Kc3 {[%clk 0:01:35]} 43. Bf1 {[%clk 0:00:14]}  Qxb6 {[%clk 0:01:25]} 0-1


[Site "https://www.chess.com"]